[Event "Titled Tuesday Blitz July 25 Early 2023"]
[White "Alberto, Manuel"]
[Black "NicolaiMaxime"]
[WhiteFideId "10100148"]
[WhiteElo "2346"]
[BlackElo "2572"]
[Result "0-1"]
[Round "11"]
[TimeControl "180+2"]
[Date "2023.07.25"]
[WhiteClock "0:01:36"]
[BlackClock "0:02:17"]
[Board "118"]

1. e4 {[%clk 0:03:00]}  c5 {[%clk 0:03:00]} 2. Nf3 {[%clk 0:03:00]}  Nc6 {[%clk 0:03:00]} 3. Bb5 {[%clk 0:02:58]}  g6 {[%clk 0:02:59]} 4. O-O {[%clk 0:02:56]}  Bg7 {[%clk 0:02:59]} 5. Re1 {[%clk 0:02:56]}  Qc7 {[%clk 0:02:59]} 6. Nc3 {[%clk 0:02:54]}  a6 {[%clk 0:02:55]} 7. Nd5 {[%clk 0:02:52]}  Qd8 {[%clk 0:02:55]} 8. Bf1 {[%clk 0:02:50]}  e6 {[%clk 0:02:55]} 9. Ne3 {[%clk 0:02:48]}  Nge7 {[%clk 0:02:55]} 10. c3 {[%clk 0:02:46]}  O-O {[%clk 0:02:56]} 11. d4 {[%clk 0:02:46]}  cxd4 {[%clk 0:02:56]} 12. cxd4 {[%clk 0:02:46]}  d5 {[%clk 0:02:57]} 13. e5 {[%clk 0:02:45]}  b5 {[%clk 0:02:55]} 14. a3 {[%clk 0:02:43]}  Bd7 {[%clk 0:02:55]} 15. Bd3 {[%clk 0:02:42]}  Qb6 {[%clk 0:02:49]} 16. Bc2 {[%clk 0:02:33]}  Rac8 {[%clk 0:02:48]} 17. h4 {[%clk 0:02:32]}  h5 {[%clk 0:02:43]} 18. g4 {[%clk 0:02:27]}  hxg4 {[%clk 0:02:42]} 19. Nxg4 {[%clk 0:02:27]}  Nf5 {[%clk 0:02:43]} 20. Bxf5 {[%clk 0:02:26]}  exf5 {[%clk 0:02:43]} 21. Nf6+ {[%clk 0:02:26]}  Bxf6 {[%clk 0:02:41]} 22. exf6 {[%clk 0:02:25]}  Rfe8 {[%clk 0:02:39]} 23. Be3 {[%clk 0:02:24]}  Re4 {[%clk 0:02:36]} 24. h5 {[%clk 0:02:22]}  Rg4+ {[%clk 0:02:31]} 25. Kf1 {[%clk 0:02:21]}  b4 {[%clk 0:02:30]} 26. a4 {[%clk 0:02:17]}  Nd8 {[%clk 0:02:29]} 27. hxg6 {[%clk 0:02:15]}  Qxf6 {[%clk 0:02:24]} 28. gxf7+ {[%clk 0:02:14]}  Nxf7 {[%clk 0:02:25]} 29. Rc1 {[%clk 0:02:05]}  f4 {[%clk 0:02:25]} 30. Rxc8+ {[%clk 0:02:04]}  Bxc8 {[%clk 0:02:26]} 31. Bd2 {[%clk 0:02:02]}  a5 {[%clk 0:02:25]} 32. Ne5 {[%clk 0:02:00]}  Ba6+ {[%clk 0:02:25]} 33. Qe2 {[%clk 0:01:53]}  Bxe2+ {[%clk 0:02:24]} 34. Rxe2 {[%clk 0:01:53]}  Nxe5 {[%clk 0:02:24]} 35. Rxe5 {[%clk 0:01:52]}  f3 {[%clk 0:02:20]} 36. Be3 {[%clk 0:01:48]}  Qh4 {[%clk 0:02:19]} 37. Ke1 {[%clk 0:01:48]}  Rxd4 {[%clk 0:02:18]} 38. Bxd4 {[%clk 0:01:46]}  Qxd4 {[%clk 0:02:19]} 39. Re3 {[%clk 0:01:45]}  Qxb2 {[%clk 0:02:17]} 40. Rxf3 {[%clk 0:01:45]}  Qc1+ {[%clk 0:02:15]} 41. Ke2 {[%clk 0:01:44]}  Qc4+ {[%clk 0:02:16]} 42. Ke1 {[%clk 0:01:42]}  b3 {[%clk 0:02:17]} 43. Rxb3 {[%clk 0:01:36]}  Qxb3 {[%clk 0:02:17]} 0-1


[Site "https://www.chess.com"]

[Event "Titled Tuesday Blitz July 25 Early 2023"]
[White "Altman, Joshua"]
[Black "Osinovsky, Stepan"]
[WhiteFideId "426210"]
[BlackFideId "4157354"]
[WhiteElo "2508"]
[BlackElo "2337"]
[Result "1-0"]
[Round "11"]
[TimeControl "180+2"]
[Date "2023.07.25"]
[WhiteClock "0:00:10"]
[BlackClock "0:00:15"]
[Board "119"]

1. e4 {[%clk 0:03:00]}  e5 {[%clk 0:02:59]} 2. Nf3 {[%clk 0:03:00]}  Nc6 {[%clk 0:03:00]} 3. Nc3 {[%clk 0:02:59]}  Nf6 {[%clk 0:03:00]} 4. Nxe5 {[%clk 0:02:59]}  Nxe5 {[%clk 0:02:59]} 5. d4 {[%clk 0:03:00]}  Ng6 {[%clk 0:02:49]} 6. e5 {[%clk 0:02:59]}  Ng8 {[%clk 0:02:49]} 7. Bc4 {[%clk 0:03:00]}  d6 {[%clk 0:02:44]} 8. Qf3 {[%clk 0:02:53]}  Be6 {[%clk 0:02:25]} 9. Qxb7 {[%clk 0:02:47]}  Bxc4 {[%clk 0:02:21]} 10. Qc6+ {[%clk 0:02:47]}  Ke7 {[%clk 0:02:11]} 11. Qxc4 {[%clk 0:02:39]}  dxe5 {[%clk 0:02:00]} 12. O-O {[%clk 0:02:25]}  Qxd4 {[%clk 0:01:08]} 13. Nd5+ {[%clk 0:02:07]}  Kd6 {[%clk 0:00:57]} 14. Qxc7+ {[%clk 0:02:07]}  Kxd5 {[%clk 0:00:58]} 15. Be3 {[%clk 0:01:47]}  Qb4 {[%clk 0:00:29]} 16. Rad1+ {[%clk 0:01:30]}  Ke6 {[%clk 0:00:27]} 17. Qc6+ {[%clk 0:01:20]}  Bd6 {[%clk 0:00:23]} 18. Qxa8 {[%clk 0:00:48]}  N8e7 {[%clk 0:00:23]} 19. Qxa7 {[%clk 0:00:41]}  Qxb2 {[%clk 0:00:23]} 20. Qa6 {[%clk 0:00:33]}  Qa3 {[%clk 0:00:23]} 21. Qc4+ {[%clk 0:00:29]}  Kf6 {[%clk 0:00:21]} 22. Rd3 {[%clk 0:00:19]}  Rc8 {[%clk 0:00:19]} 23. Qg4 {[%clk 0:00:12]}  Qb4 {[%clk 0:00:15]} 24. Bg5# {[%clk 0:00:10]} 1-0


[Site "https://www.chess.com"]

[Event "Titled Tuesday Blitz July 25 Early 2023"]
[White "Goffredo_Fofi"]
[Black "Cooper, Aaron"]
[BlackFideId "2634945"]
[WhiteElo "2492"]
[BlackElo "2307"]
[Result "0-1"]
[Round "11"]
[TimeControl "180+2"]
[Date "2023.07.25"]
[WhiteClock "0:00:00"]
[BlackClock "0:00:14"]
[Board "120"]

1. d4 {[%clk 0:03:00]}  Nf6 {[%clk 0:02:59]} 2. c3 {[%clk 0:03:00]}  d5 {[%clk 0:02:55]} 3. Bf4 {[%clk 0:03:00]}  c5 {[%clk 0:02:52]} 4. e3 {[%clk 0:03:00]}  Nc6 {[%clk 0:02:52]} 5. Nd2 {[%clk 0:03:00]}  cxd4 {[%clk 0:02:49]} 6. exd4 {[%clk 0:03:01]}  g6 {[%clk 0:02:48]} 7. Bd3 {[%clk 0:02:49]}  Bg7 {[%clk 0:02:47]} 8. h3 {[%clk 0:02:47]}  O-O {[%clk 0:02:46]} 9. Ngf3 {[%clk 0:02:46]}  Bf5 {[%clk 0:02:45]} 10. Bxf5 {[%clk 0:02:46]}  gxf5 {[%clk 0:02:46]} 11. g4 {[%clk 0:02:45]}  Qd7 {[%clk 0:02:11]} 12. Ne5 {[%clk 0:02:10]}  Nxe5 {[%clk 0:02:09]} 13. dxe5 {[%clk 0:02:11]}  Ne4 {[%clk 0:02:02]} 14. f3 {[%clk 0:02:05]}  Nc5 {[%clk 0:01:58]} 15. Nb3 {[%clk 0:01:41]}  Ne6 {[%clk 0:01:58]} 16. Be3 {[%clk 0:01:34]}  f4 {[%clk 0:01:55]} 17. Bd4 {[%clk 0:01:27]}  Rfc8 {[%clk 0:01:46]} 18. Qe2 {[%clk 0:01:23]}  a5 {[%clk 0:01:44]} 19. a4 {[%clk 0:01:18]}  Rc4 {[%clk 0:01:42]} 20. O-O {[%clk 0:00:58]}  Rxa4 {[%clk 0:01:39]} 21. Qd3 {[%clk 0:00:44]}  Rxa1 {[%clk 0:01:24]} 22. Rxa1 {[%clk 0:00:45]}  a4 {[%clk 0:01:24]} 23. Ra3 {[%clk 0:00:44]}  b5 {[%clk 0:01:22]} 24. Nc1 {[%clk 0:00:27]}  Rb8 {[%clk 0:01:13]} 25. Ne2 {[%clk 0:00:25]}  b4 {[%clk 0:01:10]} 26. cxb4 {[%clk 0:00:26]}  Rxb4 {[%clk 0:01:10]} 27. Bc3 {[%clk 0:00:26]}  Rc4 {[%clk 0:01:02]} 28. b3 {[%clk 0:00:22]}  axb3 {[%clk 0:00:56]} 29. Rxb3 {[%clk 0:00:23]}  Qc7 {[%clk 0:00:54]} 30. Qxd5 {[%clk 0:00:20]}  Qa7+ {[%clk 0:00:41]} 31. Kg2 {[%clk 0:00:17]}  Rc8 {[%clk 0:00:30]} 32. Bd2 {[%clk 0:00:14]}  Rd8 {[%clk 0:00:25]} 33. Qa5 {[%clk 0:00:05]}  Qd7 {[%clk 0:00:22]} 34. Bc3 {[%clk 0:00:05]}  Qd1 {[%clk 0:00:21]} 35. Rb2 {[%clk 0:00:06]}  Ng5 {[%clk 0:00:17]} 36. h4 {[%clk 0:00:05]}  Nxf3 {[%clk 0:00:16]} 37. Kxf3 {[%clk 0:00:04]}  Rd3+ {[%clk 0:00:16]} 38. Kxf4 {[%clk 0:00:00]}  Qf1+ {[%clk 0:00:14]} 0-1


[Site "https://www.chess.com"]

[Event "Titled Tuesday Blitz July 25 Early 2023"]
[White "Novikov, Evgenij"]
[Black "Xavier_mompel"]
[WhiteFideId "4125380"]
[WhiteElo "2438"]
[BlackElo "2279"]
[Result "1-0"]
[Round "11"]
[TimeControl "180+2"]
[Date "2023.07.25"]
[WhiteClock "0:00:45"]
[BlackClock "0:00:00"]
[Board "124"]

1. e4 {[%clk 0:03:00]}  c5 {[%clk 0:02:59]} 2. d4 {[%clk 0:02:59]}  cxd4 {[%clk 0:02:59]} 3. c3 {[%clk 0:02:59]}  Nf6 {[%clk 0:02:59]} 4. e5 {[%clk 0:02:59]}  Nd5 {[%clk 0:03:00]} 5. Bc4 {[%clk 0:03:00]}  Nb6 {[%clk 0:02:59]} 6. Bb3 {[%clk 0:03:00]}  d5 {[%clk 0:02:59]} 7. cxd4 {[%clk 0:02:56]}  Nc6 {[%clk 0:02:59]} 8. Ne2 {[%clk 0:02:56]}  Bg4 {[%clk 0:02:50]} 9. f3 {[%clk 0:02:55]}  Bf5 {[%clk 0:02:50]} 10. O-O {[%clk 0:02:55]}  e6 {[%clk 0:02:49]} 11. Nbc3 {[%clk 0:02:51]}  Be7 {[%clk 0:02:47]} 12. Be3 {[%clk 0:02:37]}  O-O {[%clk 0:02:42]} 13. Bf2 {[%clk 0:02:28]}  Rc8 {[%clk 0:02:41]} 14. g4 {[%clk 0:02:19]}  Bg6 {[%clk 0:02:40]} 15. Nf4 {[%clk 0:02:19]}  Na5 {[%clk 0:02:26]} 16. Nxg6 {[%clk 0:02:17]}  fxg6 {[%clk 0:02:14]} 17. Bc2 {[%clk 0:02:13]}  Bg5 {[%clk 0:02:10]} 18. Qe2 {[%clk 0:01:48]}  Nac4 {[%clk 0:02:09]} 19. Nd1 {[%clk 0:01:29]}  Qe7 {[%clk 0:01:52]} 20. Be1 {[%clk 0:01:24]}  Qd7 {[%clk 0:01:09]} 21. Bd3 {[%clk 0:01:14]}  Rf7 {[%clk 0:00:58]} 22. h4 {[%clk 0:01:12]}  Bf4 {[%clk 0:00:48]} 23. b3 {[%clk 0:01:11]}  Na3 {[%clk 0:00:36]} 24. Bb4 {[%clk 0:01:06]}  Qd8 {[%clk 0:00:09]} 25. g5 {[%clk 0:00:54]}  Bc1 {[%clk 0:00:08]} 26. Nf2 {[%clk 0:00:49]}  Nac4 {[%clk 0:00:02]} 27. Raxc1 {[%clk 0:00:47]}  a5 {[%clk 0:00:00]} 28. Bc5 {[%clk 0:00:45]} 1-0


[Site "https://www.chess.com"]

[Event "Titled Tuesday Blitz July 25 Early 2023"]
[White "Ladan, Nicholas"]
[Black "rikchessmx"]
[WhiteFideId "30918855"]
[WhiteElo "2435"]
[BlackElo "2276"]
[Result "1-0"]
[Round "11"]
[TimeControl "180+2"]
[Date "2023.07.25"]
[WhiteClock "0:00:17"]
[BlackClock "0:01:26"]
[Board "125"]

1. b3 {[%clk 0:03:00]}  a5 {[%clk 0:02:59]} 2. Bb2 {[%clk 0:02:57]}  a4 {[%clk 0:02:58]} 3. e4 {[%clk 0:02:57]}  c5 {[%clk 0:02:55]} 4. bxa4 {[%clk 0:02:55]}  Rxa4 {[%clk 0:02:54]} 5. Nc3 {[%clk 0:02:56]}  Ra8 {[%clk 0:02:54]} 6. Nf3 {[%clk 0:02:49]}  Nc6 {[%clk 0:02:54]} 7. d4 {[%clk 0:02:48]}  cxd4 {[%clk 0:02:53]} 8. Nxd4 {[%clk 0:02:48]}  Qb6 {[%clk 0:02:53]} 9. Ncb5 {[%clk 0:02:44]}  e5 {[%clk 0:02:45]} 10. Nf5 {[%clk 0:02:41]}  Bc5 {[%clk 0:02:42]} 11. Nfd6+ {[%clk 0:02:33]}  Kf8 {[%clk 0:02:37]} 12. Qd5 {[%clk 0:02:14]}  Bxf2+ {[%clk 0:02:34]} 13. Kd1 {[%clk 0:02:11]}  Nh6 {[%clk 0:02:27]} 14. Bxe5 {[%clk 0:01:32]}  Qc5 {[%clk 0:02:17]} 15. Bg3 {[%clk 0:01:11]}  Qxd5+ {[%clk 0:02:14]} 16. exd5 {[%clk 0:01:09]}  Bxg3 {[%clk 0:02:14]} 17. hxg3 {[%clk 0:00:58]}  Nb4 {[%clk 0:02:14]} 18. Bc4 {[%clk 0:00:51]}  b6 {[%clk 0:02:08]} 19. c3 {[%clk 0:00:46]}  Na6 {[%clk 0:02:07]} 20. Kc2 {[%clk 0:00:40]}  Nc5 {[%clk 0:02:06]} 21. Rae1 {[%clk 0:00:39]}  Ba6 {[%clk 0:02:01]} 22. Nc7 {[%clk 0:00:36]}  Bxc4 {[%clk 0:01:54]} 23. Nxa8 {[%clk 0:00:35]}  g6 {[%clk 0:01:51]} 24. Rxh6 {[%clk 0:00:34]}  Kg7 {[%clk 0:01:51]} 25. Rh4 {[%clk 0:00:34]}  Rxa8 {[%clk 0:01:47]} 26. Rxc4 {[%clk 0:00:33]}  Rxa2+ {[%clk 0:01:47]} 27. Kb1 {[%clk 0:00:34]}  Rxg2 {[%clk 0:01:47]} 28. Re7 {[%clk 0:00:31]}  Rf2 {[%clk 0:01:45]} 29. Nc8 {[%clk 0:00:25]}  Kf8 {[%clk 0:01:35]} 30. Rxc5 {[%clk 0:00:19]}  bxc5 {[%clk 0:01:34]} 31. Rxd7 {[%clk 0:00:19]}  Rf3 {[%clk 0:01:33]} 32. Kc2 {[%clk 0:00:19]}  Rxg3 {[%clk 0:01:33]} 33. Rd8+ {[%clk 0:00:19]}  Kg7 {[%clk 0:01:33]} 34. d6 {[%clk 0:00:19]}  c4 {[%clk 0:01:33]} 35. d7 {[%clk 0:00:19]}  Rd3 {[%clk 0:01:33]} 36. Nb6 {[%clk 0:00:17]}  Rd6 {[%clk 0:01:32]} 37. Nxc4 {[%clk 0:00:17]}  Rd5 {[%clk 0:01:32]} 38. Nb6 {[%clk 0:00:16]}  Rd6 {[%clk 0:01:32]} 39. Rb8 {[%clk 0:00:17]}  h5 {[%clk 0:01:29]} 40. d8=Q {[%clk 0:00:17]}  Rxd8 {[%clk 0:01:29]} 41. Rxd8 {[%clk 0:00:18]}  h4 {[%clk 0:01:29]} 42. c4 {[%clk 0:00:19]}  g5 {[%clk 0:01:30]} 43. c5 {[%clk 0:00:19]}  h3 {[%clk 0:01:30]} 44. c6 {[%clk 0:00:19]}  g4 {[%clk 0:01:30]} 45. c7 {[%clk 0:00:19]}  h2 {[%clk 0:01:31]} 46. Rd1 {[%clk 0:00:18]}  g3 {[%clk 0:01:30]} 47. c8=Q {[%clk 0:00:18]}  g2 {[%clk 0:01:31]} 48. Qg4+ {[%clk 0:00:19]}  Kf8 {[%clk 0:01:30]} 49. Nd7+ {[%clk 0:00:17]}  Ke7 {[%clk 0:01:30]} 50. Qxg2 {[%clk 0:00:16]}  h1=Q {[%clk 0:01:29]} 51. Qxh1 {[%clk 0:00:16]}  f5 {[%clk 0:01:29]} 52. Qh7+ {[%clk 0:00:16]}  Ke6 {[%clk 0:01:29]} 53. Qg6+ {[%clk 0:00:16]}  Ke7 {[%clk 0:01:27]} 54. Qf6+ {[%clk 0:00:16]}  Ke8 {[%clk 0:01:26]} 55. Qf8# {[%clk 0:00:17]} 1-0


[Site "https://www.chess.com"]

[Event "Titled Tuesday Blitz July 25 Early 2023"]
[White "Thiel, Thomas"]
[Black "Manukian, Artak"]
[WhiteFideId "4615964"]
[BlackFideId "13301373"]
[WhiteElo "2273"]
[BlackElo "2431"]
[Result "0-1"]
[Round "11"]
[TimeControl "180+2"]
[Date "2023.07.25"]
[WhiteClock "0:00:00"]
[BlackClock "0:00:08"]
[Board "126"]

1. e4 {[%clk 0:03:00]}  c6 {[%clk 0:02:59]} 2. d4 {[%clk 0:02:58]}  d5 {[%clk 0:02:58]} 3. exd5 {[%clk 0:02:59]}  cxd5 {[%clk 0:02:58]} 4. c4 {[%clk 0:02:59]}  Nf6 {[%clk 0:02:58]} 5. Nc3 {[%clk 0:02:59]}  g6 {[%clk 0:02:58]} 6. Qb3 {[%clk 0:02:57]}  Bg7 {[%clk 0:02:55]} 7. cxd5 {[%clk 0:02:57]}  O-O {[%clk 0:02:54]} 8. Be2 {[%clk 0:02:57]}  Nbd7 {[%clk 0:02:44]} 9. Nh3 {[%clk 0:02:56]}  Nb6 {[%clk 0:02:44]} 10. Nf4 {[%clk 0:02:55]}  Bf5 {[%clk 0:02:40]} 11. O-O {[%clk 0:02:51]}  Ne4 {[%clk 0:02:38]} 12. Bf3 {[%clk 0:02:46]}  Nd6 {[%clk 0:02:19]} 13. Be3 {[%clk 0:02:35]}  Nbc4 {[%clk 0:02:12]} 14. Rfe1 {[%clk 0:02:24]}  Rc8 {[%clk 0:01:59]} 15. Rac1 {[%clk 0:02:15]}  h5 {[%clk 0:01:56]} 16. h3 {[%clk 0:02:12]}  Nxe3 {[%clk 0:01:51]} 17. fxe3 {[%clk 0:02:09]}  Nc4 {[%clk 0:01:40]} 18. Nce2 {[%clk 0:02:05]}  Nd2 {[%clk 0:01:31]} 19. Qxb7 {[%clk 0:01:53]}  Rb8 {[%clk 0:01:27]} 20. Qc7 {[%clk 0:01:49]}  Rxb2 {[%clk 0:01:23]} 21. Qxd8 {[%clk 0:01:47]}  Rxd8 {[%clk 0:01:24]} 22. Rc7 {[%clk 0:01:40]}  Rxa2 {[%clk 0:01:16]} 23. Rxe7 {[%clk 0:01:37]}  Bf8 {[%clk 0:01:11]} 24. Rb7 {[%clk 0:01:30]}  a5 {[%clk 0:01:02]} 25. e4 {[%clk 0:01:29]}  Bc8 {[%clk 0:00:57]} 26. Rb8 {[%clk 0:01:25]}  Be7 {[%clk 0:00:54]} 27. e5 {[%clk 0:01:23]}  Nxf3+ {[%clk 0:00:47]} 28. gxf3 {[%clk 0:01:20]}  Bf5 {[%clk 0:00:43]} 29. Rxd8+ {[%clk 0:01:18]}  Bxd8 {[%clk 0:00:44]} 30. d6 {[%clk 0:01:15]}  a4 {[%clk 0:00:40]} 31. Nd5 {[%clk 0:01:13]}  a3 {[%clk 0:00:36]} 32. Ne7+ {[%clk 0:01:13]}  Kf8 {[%clk 0:00:31]} 33. Nxf5 {[%clk 0:01:12]}  gxf5 {[%clk 0:00:31]} 34. Nf4 {[%clk 0:01:08]}  Rb2 {[%clk 0:00:28]} 35. e6 {[%clk 0:01:08]}  fxe6 {[%clk 0:00:23]} 36. Nxe6+ {[%clk 0:01:09]}  Ke8 {[%clk 0:00:24]} 37. Nc5+ {[%clk 0:00:49]}  Kf7 {[%clk 0:00:23]} 38. d7 {[%clk 0:00:45]}  a2 {[%clk 0:00:20]} 39. Ne6 {[%clk 0:00:45]}  Bh4 {[%clk 0:00:17]} 40. d8=Q {[%clk 0:00:38]}  Bxd8 {[%clk 0:00:17]} 41. Nxd8+ {[%clk 0:00:38]}  Kf6 {[%clk 0:00:16]} 42. Re6+ {[%clk 0:00:36]}  Kg7 {[%clk 0:00:16]} 43. Ra6 {[%clk 0:00:34]}  Rb1+ {[%clk 0:00:15]} 44. Kf2 {[%clk 0:00:34]}  a1=Q {[%clk 0:00:16]} 45. Rxa1 {[%clk 0:00:31]}  Rxa1 {[%clk 0:00:17]} 46. Kg3 {[%clk 0:00:27]}  Kf6 {[%clk 0:00:16]} 47. d5 {[%clk 0:00:25]}  Rd1 {[%clk 0:00:16]} 48. Ne6 {[%clk 0:00:25]}  Rxd5 {[%clk 0:00:14]} 49. Nf4 {[%clk 0:00:25]}  Rd4 {[%clk 0:00:11]} 50. h4 {[%clk 0:00:19]}  Ke5 {[%clk 0:00:09]} 51. Nxh5 {[%clk 0:00:19]}  f4+ {[%clk 0:00:09]} 52. Kg4 {[%clk 0:00:18]}  Ra4 {[%clk 0:00:09]} 53. Ng7 {[%clk 0:00:16]}  Ra8 {[%clk 0:00:07]} 54. h5 {[%clk 0:00:14]}  Kf6 {[%clk 0:00:03]} 55. h6 {[%clk 0:00:14]}  Kg6 {[%clk 0:00:03]} 56. Nh5 {[%clk 0:00:13]}  Kxh6 {[%clk 0:00:03]} 57. Nxf4 {[%clk 0:00:13]}  Kg7 {[%clk 0:00:04]} 58. Nh3 {[%clk 0:00:13]}  Kf7 {[%clk 0:00:04]} 59. f4 {[%clk 0:00:13]}  Kf6 {[%clk 0:00:04]} 60. Ng5 {[%clk 0:00:11]}  Rg8 {[%clk 0:00:05]} 61. Kf3 {[%clk 0:00:09]}  Kf5 {[%clk 0:00:06]} 62. Ne4 {[%clk 0:00:06]}  Ra8 {[%clk 0:00:06]} 63. Ng3+ {[%clk 0:00:06]}  Kf6 {[%clk 0:00:06]} 64. Kg4 {[%clk 0:00:06]}  Rg8+ {[%clk 0:00:05]} 65. Kf3 {[%clk 0:00:04]}  Ra8 {[%clk 0:00:06]} 66. Kg4 {[%clk 0:00:03]}  Kg6 {[%clk 0:00:07]} 67. f5+ {[%clk 0:00:02]}  Kf7 {[%clk 0:00:07]} 68. Kf4 {[%clk 0:00:02]}  Rg8 {[%clk 0:00:07]} 69. Ne4 {[%clk 0:00:02]}  Rg1 {[%clk 0:00:08]} 70. Ng5+ {[%clk 0:00:02]}  Kg7 {[%clk 0:00:08]} 71. Ne4 {[%clk 0:00:02]}  Kf8 {[%clk 0:00:08]} 72. Ke5 {[%clk 0:00:00]}  Re1 {[%clk 0:00:08]} 0-1


[Site "https://www.chess.com"]

[Event "Titled Tuesday Blitz July 25 Early 2023"]
[White "Joshi, Pankaj"]
[Black "Pershina, Elena"]
[WhiteFideId "5006210"]
[BlackFideId "24147516"]
[WhiteElo "2266"]
[BlackElo "2422"]
[Result "0-1"]
[Round "11"]
[TimeControl "180+2"]
[Date "2023.07.25"]
[WhiteClock "0:00:14"]
[BlackClock "0:00:50"]
[Board "127"]

1. e4 {[%clk 0:03:00]}  c5 {[%clk 0:02:58]} 2. Nc3 {[%clk 0:03:00]}  Nc6 {[%clk 0:02:58]} 3. g3 {[%clk 0:03:01]}  g6 {[%clk 0:02:58]} 4. Bg2 {[%clk 0:03:01]}  Bg7 {[%clk 0:02:58]} 5. d3 {[%clk 0:03:02]}  d6 {[%clk 0:02:54]} 6. f4 {[%clk 0:03:02]}  e5 {[%clk 0:02:52]} 7. Nf3 {[%clk 0:03:01]}  Nge7 {[%clk 0:02:48]} 8. O-O {[%clk 0:03:00]}  O-O {[%clk 0:02:47]} 9. f5 {[%clk 0:02:48]}  gxf5 {[%clk 0:02:43]} 10. Nh4 {[%clk 0:02:48]}  Nd4 {[%clk 0:02:37]} 11. Qh5 {[%clk 0:02:34]}  f6 {[%clk 0:01:51]} 12. Bh6 {[%clk 0:02:19]}  Qe8 {[%clk 0:01:45]} 13. Qxe8 {[%clk 0:02:10]}  Rxe8 {[%clk 0:01:46]} 14. Bxg7 {[%clk 0:02:10]}  Kxg7 {[%clk 0:01:45]} 15. Nxf5+ {[%clk 0:01:49]}  Nexf5 {[%clk 0:01:44]} 16. exf5 {[%clk 0:01:50]}  Nxc2 {[%clk 0:01:42]} 17. Rac1 {[%clk 0:01:48]}  Ne3 {[%clk 0:01:41]} 18. Rf2 {[%clk 0:01:37]}  Nxg2 {[%clk 0:01:38]} 19. Kxg2 {[%clk 0:01:38]}  Bd7 {[%clk 0:01:37]} 20. Kg1 {[%clk 0:01:34]}  Bc6 {[%clk 0:01:37]} 21. a3 {[%clk 0:01:34]}  b6 {[%clk 0:01:33]} 22. b4 {[%clk 0:01:32]}  Rac8 {[%clk 0:01:32]} 23. b5 {[%clk 0:01:32]}  Bb7 {[%clk 0:01:31]} 24. Nd1 {[%clk 0:01:29]}  d5 {[%clk 0:01:30]} 25. Ne3 {[%clk 0:01:28]}  e4 {[%clk 0:01:25]} 26. dxe4 {[%clk 0:01:22]}  Rxe4 {[%clk 0:01:26]} 27. Ng2 {[%clk 0:01:07]}  Rce8 {[%clk 0:01:22]} 28. Nf4 {[%clk 0:01:06]}  Re1+ {[%clk 0:01:16]} 29. Rf1 {[%clk 0:01:04]}  R1e3 {[%clk 0:01:08]} 30. Ne6+ {[%clk 0:01:00]}  Kf7 {[%clk 0:01:08]} 31. a4 {[%clk 0:00:57]}  d4 {[%clk 0:01:07]} 32. Rce1 {[%clk 0:00:50]}  Rxe1 {[%clk 0:01:03]} 33. Rxe1 {[%clk 0:00:50]}  Bd5 {[%clk 0:01:02]} 34. Ra1 {[%clk 0:00:19]}  Bxe6 {[%clk 0:01:01]} 35. fxe6+ {[%clk 0:00:20]}  Rxe6 {[%clk 0:01:01]} 36. a5 {[%clk 0:00:21]}  Kg6 {[%clk 0:00:54]} 37. axb6 {[%clk 0:00:20]}  axb6 {[%clk 0:00:55]} 38. Ra7 {[%clk 0:00:19]}  h5 {[%clk 0:00:51]} 39. Rc7 {[%clk 0:00:17]}  Kf5 {[%clk 0:00:50]} 40. Rc6 {[%clk 0:00:17]}  Rxc6 {[%clk 0:00:49]} 41. bxc6 {[%clk 0:00:14]}  Ke6 {[%clk 0:00:50]} 0-1


[Site "https://www.chess.com"]

[Event "Titled Tuesday Blitz July 25 Early 2023"]
[White "Francisco_Ferrari"]
[Black "Bristy Mukherjee"]
[BlackFideId "25077325"]
[WhiteElo "2204"]
[BlackElo "2405"]
[Result "0-1"]
[Round "11"]
[TimeControl "180+2"]
[Date "2023.07.25"]
[WhiteClock "0:00:00"]
[BlackClock "0:01:05"]
[Board "130"]

1. e4 {[%clk 0:02:57]}  h5 {[%clk 0:02:57]} 2. d4 {[%clk 0:02:51]}  a5 {[%clk 0:02:57]} 3. Nf3 {[%clk 0:02:51]}  d5 {[%clk 0:02:56]} 4. exd5 {[%clk 0:02:50]}  Nf6 {[%clk 0:02:55]} 5. Nc3 {[%clk 0:02:43]}  Nxd5 {[%clk 0:02:52]} 6. Bc4 {[%clk 0:02:39]}  Nb6 {[%clk 0:02:50]} 7. Bd3 {[%clk 0:02:30]}  Nc6 {[%clk 0:02:49]} 8. Bf4 {[%clk 0:02:28]}  Bg4 {[%clk 0:02:46]} 9. Nb5 {[%clk 0:02:20]}  Nd5 {[%clk 0:02:42]} 10. Bd2 {[%clk 0:02:10]}  Ndb4 {[%clk 0:02:39]} 11. Bxb4 {[%clk 0:01:56]}  Nxb4 {[%clk 0:02:37]} 12. h3 {[%clk 0:01:56]}  Bxf3 {[%clk 0:02:36]} 13. Qxf3 {[%clk 0:01:55]}  c6 {[%clk 0:02:36]} 14. Nc3 {[%clk 0:01:50]}  Qxd4 {[%clk 0:02:35]} 15. O-O-O {[%clk 0:01:48]}  e6 {[%clk 0:02:25]} 16. Rhe1 {[%clk 0:01:36]}  Bc5 {[%clk 0:02:14]} 17. Rxe6+ {[%clk 0:01:31]}  Kf8 {[%clk 0:02:03]} 18. Re2 {[%clk 0:01:24]}  Rh6 {[%clk 0:01:58]} 19. a3 {[%clk 0:01:02]}  Nxd3+ {[%clk 0:01:44]} 20. Rxd3 {[%clk 0:01:03]}  Qf6 {[%clk 0:01:44]} 21. Qxf6 {[%clk 0:00:47]}  Rxf6 {[%clk 0:01:45]} 22. Ne4 {[%clk 0:00:47]}  Re6 {[%clk 0:01:40]} 23. Kd1 {[%clk 0:00:27]}  Rae8 {[%clk 0:01:38]} 24. f3 {[%clk 0:00:21]}  f5 {[%clk 0:01:33]} 25. Nc3 {[%clk 0:00:20]}  Rxe2 {[%clk 0:01:33]} 26. Nxe2 {[%clk 0:00:21]}  Re6 {[%clk 0:01:29]} 27. Nf4 {[%clk 0:00:20]}  Rd6 {[%clk 0:01:26]} 28. Rxd6 {[%clk 0:00:18]}  Bxd6 {[%clk 0:01:27]} 29. Nxh5 {[%clk 0:00:19]}  g6 {[%clk 0:01:26]} 30. Nf6 {[%clk 0:00:17]}  Ke7 {[%clk 0:01:23]} 31. Ng8+ {[%clk 0:00:16]}  Kf7 {[%clk 0:01:22]} 32. Nh6+ {[%clk 0:00:15]}  Kg7 {[%clk 0:01:23]} 33. Nxf5+ {[%clk 0:00:14]}  gxf5 {[%clk 0:01:24]} 34. Ke2 {[%clk 0:00:15]}  Kf6 {[%clk 0:01:19]} 35. Ke3 {[%clk 0:00:13]}  Kg5 {[%clk 0:01:19]} 36. Kd4 {[%clk 0:00:08]}  Kf4 {[%clk 0:01:17]} 37. c4 {[%clk 0:00:06]}  Be5+ {[%clk 0:01:14]} 38. Kc5 {[%clk 0:00:05]}  Bxb2 {[%clk 0:01:15]} 39. Kb6 {[%clk 0:00:05]}  Bxa3 {[%clk 0:01:15]} 40. Kxa5 {[%clk 0:00:06]}  Bc5 {[%clk 0:01:14]} 41. g4 {[%clk 0:00:04]}  Kg5 {[%clk 0:01:03]} 42. h4+ {[%clk 0:00:01]}  Kxh4 {[%clk 0:01:02]} 43. gxf5 {[%clk 0:00:02]}  Kg5 {[%clk 0:01:02]} 44. f4+ {[%clk 0:00:02]}  Kxf5 {[%clk 0:01:02]} 45. Ka4 {[%clk 0:00:02]}  Kxf4 {[%clk 0:01:03]} 46. Ka5 {[%clk 0:00:03]}  Ke4 {[%clk 0:01:03]} 47. Ka4 {[%clk 0:00:04]}  Kd4 {[%clk 0:01:04]} 48. Kb3 {[%clk 0:00:05]}  b5 {[%clk 0:01:03]} 49. cxb5 {[%clk 0:00:04]}  cxb5 {[%clk 0:01:04]} 50. Kc2 {[%clk 0:00:05]}  Ba3 {[%clk 0:01:04]} 51. Kd1 {[%clk 0:00:06]}  Kc3 {[%clk 0:01:04]} 52. Ke2 {[%clk 0:00:07]}  Kc2 {[%clk 0:01:04]} 53. Kf3 {[%clk 0:00:08]}  b4 {[%clk 0:01:05]} 54. Kg4 {[%clk 0:00:09]}  b3 {[%clk 0:01:05]} 55. Kh5 {[%clk 0:00:10]}  b2 {[%clk 0:01:06]} 56. Kg6 {[%clk 0:00:11]}  b1=Q {[%clk 0:01:07]} 57. Kf5 {[%clk 0:00:11]}  Qe1 {[%clk 0:01:07]} 58. Kg4 {[%clk 0:00:12]}  Kd3 {[%clk 0:01:07]} 59. Kf5 {[%clk 0:00:13]}  Qe3 {[%clk 0:01:07]} 60. Kg4 {[%clk 0:00:14]}  Qf2 {[%clk 0:01:08]} 61. Kh3 {[%clk 0:00:14]}  Qg1 {[%clk 0:01:08]} 62. Kh4 {[%clk 0:00:15]}  Qg6 {[%clk 0:01:06]} 63. Kh3 {[%clk 0:00:15]}  Qg5 {[%clk 0:01:06]} 64. Kh2 {[%clk 0:00:16]}  Qg4 {[%clk 0:01:06]} 65. Kh1 {[%clk 0:00:16]}  Ke2 {[%clk 0:01:05]} 66. Kh2 {[%clk 0:00:00]}  Kf2 {[%clk 0:01:05]} 0-1


[Site "https://www.chess.com"]